fUSD/lending_fUSD_20260329
["ID","MTS","AMOUNT","RATE_DAILY","PERIOD"]
[419021259,1774766788685,156.59,5.527e-05,2]
[419021260,1774766788883,156.59,7.369e-05,2]
[419021261,1774766789073,156.59,9.211e-05,2]
[419021262,1774766832681,200.0,0.0001051,2]
[419021263,1774766856067,214.32298509,0.00010319,2]
[419021264,1774766865383,174.85912907,0.0001051,2]
[419021270,1774767032047,-152.0,0.0001051,2]
[419021271,1774767032058,-439.86802884,0.00010959,2]
[419021272,1774767032070,-62.13550927,0.00010959,2]
[419021273,1774767032080,-166.66,0.00010959,2]
[419021274,1774767032089,-500.0,0.00011045,2]
[419021275,1774767032099,-156.59,0.00011053,2]
[419021276,1774767032108,-200.0,0.00011058,2]
[419021277,1774767032117,-166.66,0.00011135,2]
[419021278,1774767032126,-166.66,0.00011312,2]
[419021279,1774767032136,-200.0,0.00011318,2]
[419021280,1774767032147,-166.66,0.00011488,2]
[419021281,1774767032156,-328.23911323,0.00011507,2]
[419021282,1774767032167,-753.55088677,0.00011507,2]
[419021283,1774767032177,-250.0,0.00011541,2]
[419021284,1774767032186,-1200.0,0.00011559,2]
[419021285,1774767032196,-300.0,0.0001156,2]
[419021286,1774767032205,-1200.0,0.0001156,2]
[419021287,1774767032215,-300.0,0.0001156,2]
[419021288,1774767032225,-166.44,0.00011574,2]
[419021289,1774767032234,-1335.9,0.00011604,2]
[419021290,1774767032243,-200.0,0.00011606,2]
[419021291,1774767032253,-325.67897871,0.00011662,2]
[419021292,1774767032262,-177.0,0.00011662,2]
[419021293,1774767032272,-166.66,0.00011665,2]
[419021294,1774767032282,-316.0,0.00011681,2]
[419021295,1774767032291,-881.0,0.00011684,2]
[419021296,1774767032301,-1212.0,0.00011708,2]
[419021297,1774767032311,-500.0,0.00011753,2]
[419021298,1774767032323,-166.66,0.00011841,2]
[419021299,1774767032332,-327.74411979,0.0001192,2]
[419021300,1774767032342,-169.4,0.00011968,2]
[419021301,1774767032353,-500.0,0.00012,2]
[419021302,1774767032363,-500.0,0.00012047,2]
[419021303,1774767032372,-150.0,0.00012154,2]
[419021304,1774767032383,-284.20491109,0.00012154,2]
[419021305,1774767032392,-152.73,0.00012249,2]
[419021306,1774767032401,-500.0,0.00012273,2]
[419021307,1774767032410,-340.21412099,0.00012273,2]
[419021308,1774767032424,-161.10950982,0.00012273,2]
[419021309,1774767032433,-475.54144921,0.00012273,2]
[419021310,1774767032450,-24.45855079,0.00012273,2]
[419021311,1774767032459,-500.0,0.00012273,2]
[419021312,1774767032468,-501.76764882,0.00012273,2]
[419021313,1774767032478,-232.67380039,0.00012273,2]
[419021314,1774767032489,-267.32619961,0.00012273,2]
[419021315,1774767032497,-107.37135679,0.00012273,2]
[419021316,1774767032508,-392.62864321,0.00012273,2]
[419021317,1774767032517,-460.76109075,0.00012273,2]
[419021318,1774767032527,-500.44761252,0.00012273,2]
[419021319,1774767032536,-212.49474161,0.0001228,2]
[419021320,1774767032545,-1465.53107111,0.0001229,2]
[419021321,1774767032556,-607.56498033,0.0001229,2]
[419021322,1774767032583,-14301.21777574,0.0001229,2]
[419021323,1774767032594,-2168.09710004,0.0001229,2]
[419021324,1774767032605,-374.94758386,0.0001229,2]
[419021325,1774767032616,-298.86,0.0001229,2]
[419021326,1774767032627,-327995.25750055,0.0001229,2]
[419021327,1774767032637,-9908.09109436,0.0001229,2]
[419021328,1774767032649,-856.08682692,0.0001229,2]
[419021329,1774767032660,-262.02687277,0.0001229,2]
[419021333,1774767038043,-202.77599014,0.00012203,2]
[419021334,1774767038051,-216.25734308,0.00012289,2]
[419021335,1774767038058,-500.0,0.00012289,2]
[419021336,1774767038065,-524.10107634,0.00012289,2]
[419021337,1774767038073,-500.0,0.00012289,2]
[419021338,1774767038080,-409.18981173,0.00012289,2]
[419021339,1774767038087,-500.0,0.00012289,2]
[419021340,1774767038094,-178.32468778,0.00012289,2]
[419021341,1774767038100,-464.14148515,0.00012289,2]
[419021342,1774767038107,-500.0,0.00012289,2]
[419021343,1774767038115,-500.0,0.00012289,2]
[419021344,1774767038122,-361.11681594,0.00012289,2]
[419021345,1774767038128,-500.0,0.00012289,2]
[419021346,1774767038145,-500.0,0.00012289,2]
[419021347,1774767038154,-500.0,0.00012289,2]
[419021348,1774767038163,-500.0,0.00012289,2]
[419021349,1774767038169,-500.0,0.00012289,2]
[419021350,1774767038177,-500.0,0.00012289,2]
[419021351,1774767038184,-500.0,0.00012289,2]
[419021352,1774767038192,-500.0,0.00012289,2]
[419021353,1774767038198,-500.0,0.00012289,2]
[419021354,1774767038205,-500.0,0.00012289,2]
[419021355,1774767038212,-500.0,0.00012289,2]
[419021356,1774767038218,-500.0,0.00012289,2]
[419021357,1774767038225,-500.0,0.00012289,2]
[419021358,1774767038233,-500.0,0.00012289,2]
[419021359,1774767038241,-500.0,0.00012289,2]
[419021360,1774767038247,-500.0,0.00012289,2]
[419021361,1774767038254,-500.0,0.00012289,2]
[419021362,1774767038262,-464.42756576,0.00012289,2]
[419021363,1774767038273,-35.57243424,0.00012289,2]
[419021364,1774767038280,-500.0,0.00012289,2]
[419021365,1774767038289,-500.0,0.00012289,2]
[419021366,1774767038299,-500.0,0.00012289,2]
[419021367,1774767038309,-500.0,0.00012289,2]
[419021368,1774767038319,-500.0,0.00012289,2]
[419021369,1774767038328,-500.0,0.00012289,2]
[419021370,1774767038338,-115.17756576,0.00012289,2]
[419021371,1774767038350,-384.82243424,0.00012289,2]
[419021372,1774767038359,-46.87354907,0.00012289,2]
[419021373,1774767038376,-453.12645093,0.00012289,2]
[419021374,1774767038388,-500.0,0.00012289,2]
[419021375,1774767038397,-40.59022669,0.00012289,2]
[419021386,1774767040158,-459.40977331,0.00012289,2]
[419021387,1774767040168,-500.0,0.00012289,2]
[419021388,1774767040177,-77.02503337,0.00012289,2]
[419021389,1774767040225,-265.1286,0.00012289,2]
[419021390,1774767040237,-157.84636663,0.00012289,2]
[419021391,1774767040247,-108.11363337,0.00012289,2]
[419021392,1774767040259,-333.26194966,0.00012289,2]
[419021393,1774767040290,-58.62441697,0.00012289,2]
[419021394,1774767040299,-500.0,0.00012289,2]
[419021395,1774767040309,-64.53167349,0.00012289,2]
[419021396,1774767040869,-435.46832651,0.00012289,2]
[419021397,1774767040879,-500.0,0.00012289,2]
[419021398,1774767040889,-500.0,0.00012289,2]
[419021399,1774767040899,-219342.24572057,0.0001229,2]
[419021400,1774767040911,-40378.50628828,0.0001229,2]
[419021401,1774767040933,-1037.29209425,0.0001229,2]
[419021409,1774767043042,-1164.20361154,0.0001229,2]
[419021410,1774767043055,-1575.90259809,0.0001229,2]
[419021411,1774767043105,-285741.80303293,0.0001229,2]
[419021412,1774767043118,-1033.56296967,0.0001229,2]
[419021413,1774767043169,-14438.60567993,0.0001229,2]
[419021414,1774767043182,-1738.835448,0.0001229,2]
[419021415,1774767043194,-999.8506,0.0001229,2]
[419021416,1774767043207,-1000.51193,0.0001229,2]
[419021417,1774767043232,-1163.69555954,0.0001229,2]
[419021418,1774767043244,-308.03685238,0.0001229,2]
[419021419,1774767043255,-1337.35,0.0001229,2]
[419021420,1774767043269,-383.89604019,0.0001229,2]
[419021421,1774767043281,-436.75223375,0.0001229,2]
[419021428,1774767046131,-32921.25085867,0.0001229,2]
[419021429,1774767046142,-307.4538,0.0001229,2]
[419021430,1774767046154,-90739.35440116,0.0001229,2]
[419021437,1774767737168,396.27231048,0.0001051,2]
[419021438,1774767748094,160.0,0.0001,2]
[419021439,1774767813416,-292.99482941,0.00010548,2]
[419021440,1774767893132,524.5,0.00017,60]
[419021441,1774768074007,160.0,0.0001,15]
[419021442,1774768196794,866.22168395,0.0001,2]
[419021450,1774768232040,-198.28017103,0.00011212,2]
[419021451,1774768232050,-356.96222785,0.00011237,2]
[419021452,1774768232166,-712.750005,0.00011237,2]
[419021453,1774768232233,-782.0,0.00011237,2]
[419021454,1774768232244,-148.28776715,0.00011237,2]
[419021455,1774768232254,-243.62271831,0.00011272,2]
[419021456,1774768232263,-95.47454999,0.00011307,2]
[419021457,1774768232298,-1404.52545001,0.00011307,2]
[419021458,1774768232307,-150.63111806,0.00011317,2]
[419021459,1774768232316,-189.83044397,0.00011317,2]
[419021482,1774768238155,-81.30556854,0.00011317,2]
[419021483,1774768238166,-1600.0,0.00011328,2]
[419021484,1774768238176,-891.48,0.000114,2]
[419021485,1774768238186,-500.0,0.00011808,2]
[419021486,1774768238196,-166.08637647,0.00011886,2]
[419021487,1774768238206,-1200.0,0.00011896,2]
[419021488,1774768238216,-98.68103666,0.00011897,2]
[419021489,1774768238229,-201.31896334,0.00011897,2]
[419021490,1774768238239,-300.0,0.00011897,2]
[419021491,1774768238248,-33952.68103666,0.00011898,2]
[419021492,1774768238278,-901.16,0.00011898,2]
[419021493,1774768238290,-1383.36996296,0.00011898,2]
[419021494,1774768238458,-2247.17149055,0.00011898,2]
[419021495,1774768238469,-1361.12575402,0.00011898,2]
[419021496,1774768238480,-162.94883174,0.00011913,2]
[419021497,1774768238489,-150.0,0.00011972,2]
[419021498,1774768238499,-500.0,0.00011973,2]
[419021499,1774768238509,-500.0,0.00011973,2]
[419021500,1774768238519,-500.0,0.00011973,2]
[419021501,1774768238529,-500.0,0.00011973,2]
[419021502,1774768238539,-500.0,0.00011973,2]
[419021503,1774768238550,-500.0,0.00011973,2]
[419021504,1774768238559,-500.0,0.00011973,2]
[419021505,1774768238569,-212.49474161,0.0001198,2]
[419021506,1774768238578,-636.43286821,0.00011989,2]
[419021507,1774768238587,-500.0,0.00011989,2]
[419021509,1774768238597,-216.87075344,0.00011989,2]
[419021511,1774768238606,-151.38014015,0.00011989,2]
[419021512,1774768238615,-500.0,0.00011989,2]
[419021514,1774768238625,-500.0,0.00011989,2]
[419021515,1774768238635,-500.0,0.00011989,2]
[419021516,1774768238645,-500.0,0.00011989,2]
[419021517,1774768238655,-42.76918774,0.00011989,2]
[419021518,1774768238669,-457.23081226,0.00011989,2]
[419021519,1774768238680,-500.0,0.00011989,2]
[419021520,1774768238690,-500.0,0.00011989,2]
[419021521,1774768238700,-500.0,0.00011989,2]
[419021522,1774768238709,-500.0,0.00011989,2]
[419021523,1774768238719,-646.27770675,0.00011989,2]
[419021524,1774768238728,-500.0,0.00011989,2]
[419021525,1774768238738,-500.0,0.00011989,2]
[419021526,1774768238747,-3665.0,0.0001199,5]
[419021527,1774768238757,-953.8051968,0.0001199,2]
[419021528,1774768238769,-2542.91899349,0.0001199,2]
[419021529,1774768238781,-1187.75083997,0.0001199,2]
[419021530,1774768238792,-313.20449744,0.0001199,2]
[419021531,1774768238805,-378.29286825,0.0001199,2]
[419021535,1774768241098,-184952.33719907,0.0001199,2]
[419021536,1774768241165,-610.45389952,0.0001199,2]
[419021551,1774768243621,-1985.03709536,0.0001199,2]
[419021552,1774768243633,-1911.16944807,0.0001199,2]
[419021553,1774768243680,-3640.52001996,0.0001199,2]
[419021556,1774768246044,-3263.97470844,0.0001199,2]
[419021557,1774768246107,-163290.24618663,0.0001199,2]
[419021558,1774768246573,-3399.98167841,0.0001199,2]
[419021565,1774768873354,500.0,0.0001,7]
[419021568,1774769183467,157.96,5.385e-05,2]
[419021569,1774769183662,157.96,8.078e-05,2]
[419021570,1774769195537,-157.96,0.0001077,2]
[419021571,1774769244904,-200.0,0.0001074,2]
[419021572,1774769279689,-500.0,0.00010893,2]
[419021573,1774769279714,-150.0,0.00010959,2]
[419021574,1774769279739,-275.0,0.00010959,2]
[419021575,1774769279763,-127.0,0.000113,2]
[419021576,1774769339362,-73.0,0.000113,2]
[419021577,1774769339387,-503.0,0.00011397,2]
[419021578,1774769339412,-223.0,0.00011479,2]
[419021579,1774769339437,-166.66,0.00011479,2]
[419021580,1774769339461,-150.0,0.000115,2]
[419021581,1774769339495,-3800.0,0.000115,4]
[419021582,1774769339525,-926.58,0.00011507,2]
[419021583,1774769339551,-302.0,0.00011534,2]
[419021584,1774769339576,-150.0,0.00011596,2]
[419021585,1774769339601,-300.0,0.00011596,2]
[419021586,1774769339627,-16942.93920209,0.00011597,2]
[419021587,1774769339809,-2576.82079791,0.00011597,2]
[419021588,1774769389007,-13901.0,0.00011597,2]
[419021589,1774769407369,-192.03,0.0001079,2]
[419021590,1774769420769,667.95,0.00010788,2]
[419021593,1774769432319,-192.03,0.0001139,2]
[419021594,1774769432329,-2500.0,0.00011574,2]
[419021595,1774769432338,-1200.0,0.00011596,2]
[419021596,1774769432348,-300.0,0.00011596,2]
[419021597,1774769432357,-150.0,0.00011596,2]
[419021598,1774769432367,-21433.07253898,0.00011597,2]
[419021599,1774769432376,-150.0,0.00011597,2]
[419021600,1774769432386,-7600.0,0.000116,4]
[419021601,1774769432395,-150.0,0.000116,2]
[419021602,1774769432404,-1893.46599486,0.00011664,2]
[419021603,1774769432414,-212.49474162,0.00011664,2]
[419021604,1774769432423,-500.0,0.00011673,2]
[419021605,1774769432432,-500.0,0.00011673,2]
[419021606,1774769432442,-7.98425781,0.00011673,2]
[419021609,1774769438403,-492.01574219,0.00011673,2]
[419021610,1774769438413,-500.0,0.00011673,2]
[419021611,1774769438423,-500.0,0.00011673,2]
[419021612,1774769438432,-429.85911728,0.00011673,2]
[419021613,1774769438441,-500.0,0.00011673,2]
[419021614,1774769438451,-500.0,0.00011673,2]
[419021615,1774769438460,-500.0,0.00011673,2]
[419021616,1774769438470,-500.0,0.00011673,2]
[419021617,1774769438479,-500.0,0.00011673,2]
[419021618,1774769438489,-503.40008779,0.00011673,2]
[419021619,1774769438499,-500.0,0.00011673,2]
[419021620,1774769438509,-500.0,0.00011673,2]
[419021621,1774769438518,-500.0,0.00011673,2]
[419021622,1774769438528,-167.52802512,0.00011673,2]
[419021623,1774769438538,-500.0,0.00011673,2]
[419021624,1774769438547,-500.0,0.00011673,2]
[419021625,1774769438556,-1000.0,0.00011673,2]
[419021626,1774769438566,-500.0,0.00011673,2]
[419021627,1774769438575,-500.0,0.00011673,2]
[419021628,1774769438585,-169.48568797,0.00011673,2]
[419021629,1774769438595,-638.36322935,0.00011673,2]
[419021630,1774769438604,-500.0,0.00011673,2]
[419021631,1774769438614,-318.14371159,0.00011673,2]
[419021632,1774769438624,-162.91192783,0.00011673,2]
[419021633,1774769438634,-500.0,0.00011673,2]
[419021634,1774769438644,-506.79090917,0.00011673,2]
[419021635,1774769438654,-500.0,0.00011673,2]
[419021636,1774769438663,-500.0,0.00011673,2]
[419021637,1774769438673,-500.0,0.00011673,2]
[419021638,1774769438683,-500.0,0.00011673,2]
[419021639,1774769438693,-500.0,0.00011673,2]
[419021640,1774769438703,-500.0,0.00011673,2]
[419021641,1774769438712,-500.0,0.00011673,2]
[419021642,1774769438722,-500.0,0.00011673,2]
[419021643,1774769438731,-500.0,0.00011673,2]
[419021644,1774769438741,-500.0,0.00011673,2]
[419021645,1774769438751,-500.0,0.00011673,2]
[419021646,1774769438760,-314.63964145,0.00011673,2]
[419021648,1774769438770,-500.0,0.00011673,2]
[419021650,1774769438779,-1500000.0,0.00011674,2]
[419021652,1774769438788,-432.46,0.00011698,2]
[419021654,1774769438798,-1000.0,0.00011698,2]
[419021656,1774769438807,-3966.092,0.00011698,2]
[419021658,1774769438816,-500.0,0.00011698,2]
[419021660,1774769438825,-7603.56,0.00011699,2]
[419021662,1774769438835,-150.99,0.00011699,2]
[419021663,1774769438844,-4999.99,0.00011699,2]
[419021665,1774769438854,-1548.82,0.00011699,2]
[419021667,1774769438871,-5081.68,0.00011699,2]
[419021669,1774769438891,-150.99,0.00011699,2]
[419021671,1774769438908,-9999.99,0.00011699,2]
[419021673,1774769438918,-44509.08,0.00011699,2]
[419021675,1774769438928,-299.99,0.00011699,2]
[419021677,1774769438938,-293.2578206,0.000117,30]
[419021679,1774769438946,-999.99,0.000117,2]
[419021681,1774769438955,-6300.56,0.000117,2]
[419021683,1774769438965,-1619.68,0.000117,2]
[419021685,1774769438974,-9999.99,0.000117,2]
[419021687,1774769438983,-11400.0,0.000117,4]
[419021688,1774769438992,-178.93015126,0.000117,2]
[419021690,1774769439002,-307.02314579,0.000117,2]
[419021692,1774769439011,-314.19591313,0.00011724,2]
[419021694,1774769439020,-3611.77,0.0001175,2]
[419021695,1774769439028,-328.713,0.0001175,2]
[419021697,1774769439038,-500.0,0.00011773,2]
[419021700,1774769439047,-504.07846597,0.00011773,2]
[419021702,1774769439057,-3716.0,0.00011781,2]
[419021703,1774769439066,-239.74698958,0.00011782,2]
[419021704,1774769439075,-200.0,0.00011791,2]
[419021705,1774769439084,-500.0,0.00011791,2]
[419021706,1774769439093,-500.0,0.00011791,2]
[419021707,1774769439103,-500.0,0.00011791,2]
[419021708,1774769439113,-500.0,0.00011791,2]
[419021709,1774769439122,-500.0,0.00011791,2]
[419021710,1774769439131,-500.0,0.00011791,2]
[419021711,1774769439140,-500.0,0.00011791,2]
[419021712,1774769439150,-606.70815574,0.00011791,2]
[419021713,1774769439158,-151.0,0.00011791,2]
[419021714,1774769439167,-151.0,0.00011791,2]
[419021715,1774769439177,-151.0,0.00011791,2]
[419021716,1774769439185,-151.0,0.00011791,2]
[419021717,1774769439195,-151.0,0.00011791,2]
[419021718,1774769439203,-151.0,0.00011791,2]
[419021719,1774769439212,-151.0,0.00011791,2]
[419021720,1774769439221,-151.0,0.00011791,2]
[419021721,1774769439230,-151.0,0.00011791,2]
[419021722,1774769439240,-151.0,0.00011791,2]
[419021723,1774769439248,-151.0,0.00011791,2]
[419021724,1774769439257,-1000.0,0.00011797,2]
[419021725,1774769439266,-473.453545,0.00011798,2]
[419021726,1774769439275,-473.453545,0.00011798,2]
[419021727,1774769439284,-473.453545,0.00011798,2]
[419021728,1774769439293,-473.453545,0.00011798,2]
[419021729,1774769439302,-151.0,0.00011798,2]
[419021730,1774769439311,-163.194344,0.00011798,2]
[419021731,1774769439320,-614.6778,0.00011798,2]
[419021732,1774769439329,-614.6778,0.00011798,2]
[419021733,1774769439339,-614.6778,0.00011798,2]
[419021734,1774769439348,-614.6778,0.00011798,2]
[419021735,1774769439357,-151.0,0.00011798,2]
[419021736,1774769439367,-151.0,0.00011798,2]
[419021737,1774769439376,-281.000795,0.00011798,2]
[419021738,1774769439386,-151.0,0.00011798,2]
[419021739,1774769439395,-151.0,0.00011798,2]
[419021740,1774769439405,-2500000.0,0.00011798,2]
[419021741,1774769439414,-15300.0,0.000118,4]
[419021742,1774769439423,-478.0,0.00011824,2]
[419021743,1774769439432,-307.0,0.00011824,2]
[419021744,1774769439442,-16942.93920207,0.00011832,2]
[419021745,1774769439452,-159.19,0.00011852,2]
[419021746,1774769439461,-151.0,0.00011869,2]
[419021747,1774769439470,-205.11,0.00011877,2]
[419021748,1774769439480,-17020.17601531,0.0001188,2]
[419021749,1774769439489,-37910.89333687,0.0001188,2]
[419021750,1774769439499,-200.0,0.00011893,2]
[419021751,1774769439508,-200.0,0.00011894,2]
[419021752,1774769439519,-155.85026359,0.00011898,2]
[419021753,1774769439528,-154.00708367,0.000119,2]
[419021754,1774769439538,-790.63680729,0.000119,2]
[419021755,1774769439547,-250.72321771,0.000119,2]
[419021756,1774769439556,-19100.0,0.000119,4]
[419021757,1774769439565,-500.0,0.00011945,2]
[419021758,1774769439575,-374.30379425,0.00011949,2]
[419021759,1774769439584,-325068.600881,0.00011959,2]
[419021760,1774769439593,-151.0,0.00011959,2]
[419021761,1774769439602,-151.0,0.00011959,2]
[419021762,1774769439611,-500.0,0.00011972,2]
[419021763,1774769439621,-70949.5482318,0.00011981,2]
[419021764,1774769439631,-5484.9120491,0.00011981,2]
[419021765,1774769439640,-11083.1330062,0.00011981,2]
[419021766,1774769439649,-5369.4602527,0.00011981,2]
[419021767,1774769439659,-151.0,0.00011981,2]
[419021768,1774769439670,-614.6778,0.00011981,2]
[419021769,1774769439680,-614.6778,0.00011981,2]
[419021770,1774769439690,-614.6778,0.00011981,2]
[419021771,1774769439699,-614.6778,0.00011981,2]
[419021772,1774769439709,-151.0,0.00011981,2]
[419021773,1774769439718,-151.0,0.00011981,2]
[419021774,1774769439728,-4376.29127432,0.00011983,2]
[419021775,1774769439738,-250.0,0.00011983,2]
[419021776,1774769439747,-165.22963,0.00011987,2]
[419021777,1774769439757,-192.03,0.00011989,2]
[419021778,1774769439766,-151.0,0.0001199,2]
[419021779,1774769439776,-151.0,0.0001199,2]
[419021780,1774769439785,-151.0,0.0001199,2]
[419021781,1774769439795,-151.0,0.0001199,2]
[419021782,1774769439804,-151.0,0.0001199,2]
[419021783,1774769439814,-300.0,0.0001199,2]
[419021784,1774769439823,-256.111678,0.0001199,2]
[419021785,1774769439833,-151.0,0.0001199,2]
[419021786,1774769439843,-434.361465,0.0001199,2]
[419021787,1774769439852,-434.361465,0.0001199,2]
[419021788,1774769439862,-434.361465,0.0001199,2]
[419021789,1774769439872,-434.361465,0.0001199,2]
[419021790,1774769439881,-731.76,0.0001199,2]
[419021791,1774769439891,-473.453545,0.0001199,2]
[419021792,1774769439900,-473.453545,0.0001199,2]
[419021793,1774769439911,-473.453545,0.0001199,2]
[419021794,1774769439921,-473.453545,0.0001199,2]
[419021795,1774769439931,-152.0,0.0001199,3]
[419021796,1774769439940,-1504.0,0.0001199,2]
[419021797,1774769439950,-269.03666112,0.00012,2]
[419021798,1774769439959,-460.00300693,0.00012,2]
[419021799,1774769439968,-498.68489114,0.00012,2]
[419021800,1774769439977,-500.0,0.00012,7]
[419021801,1774769439987,-350.0,0.00012007,2]
[419021802,1774769439996,-16942.93920207,0.00012067,2]
[419021803,1774769440005,-308.8695174,0.00012093,2]
[419021804,1774769440015,-166.66,0.00012111,2]
[419021805,1774769440025,-151.0,0.00012126,2]
[419021806,1774769440034,-154.102073,0.00012126,2]
[419021807,1774769440044,-350.0,0.00012126,2]
[419021808,1774769440166,-37910.89333687,0.00012164,2]
[419021809,1774769440176,-350.0,0.00012174,2]
[419021810,1774769440186,-165.22963,0.00012187,2]
[419021811,1774769440195,-2612.95552758,0.00012212,2]
[419021812,1774769440204,-2612.95552758,0.00012212,2]
[419021813,1774769440214,-1000.0,0.00012221,2]
[419021814,1774769440224,-500.66997035,0.00012221,2]
[419021815,1774769440233,-1053.39889791,0.00012221,2]
[419021816,1774769440243,-1000.0,0.00012221,2]
[419021817,1774769440252,-1000.0,0.00012221,2]
[419021818,1774769440262,-1000.0,0.00012221,2]
[419021819,1774769440272,-1000.0,0.00012221,2]
[419021820,1774769440281,-409.82711305,0.00012221,2]
[419021821,1774769440292,-1000.0,0.00012221,2]
[419021822,1774769440301,-454.80496102,0.00012221,2]
[419021823,1774769440312,-1000.0,0.00012221,2]
[419021824,1774769440322,-1000.0,0.00012221,2]
[419021825,1774769440331,-500.0,0.00012246,2]
[419021826,1774769440340,-350.0,0.0001226,2]
[419021827,1774769440349,-731.76,0.00012264,2]
[419021828,1774769440359,-165.22963,0.00012287,2]
[419021829,1774769440368,-165.22963,0.00012287,2]
[419021830,1774769440378,-165.22963,0.00012287,2]
[419021831,1774769440388,-233.02519109,0.0001229,2]
[419021832,1774769440397,-151.0,0.0001229,2]
[419021833,1774769440406,-151.0,0.0001229,2]
[419021834,1774769440415,-151.0,0.0001229,2]
[419021835,1774769440424,-151.0,0.0001229,2]
[419021836,1774769440434,-180.02018599,0.0001229,2]
[419021837,1774769440443,-16942.93920207,0.00012302,2]
[419021838,1774769440452,-151.0,0.00012302,2]
[419021839,1774769440461,-151.0,0.00012302,2]
[419021840,1774769440471,-165.22963,0.00012315,2]
[419021841,1774769440481,-1000.69972798,0.00012321,2]
[419021842,1774769440490,-200.0,0.00012339,2]
[419021843,1774769440499,-151.0,0.00012343,2]
[419021844,1774769440509,-614.6778,0.00012343,2]
[419021845,1774769440518,-614.6778,0.00012343,2]
[419021846,1774769440528,-614.6778,0.00012343,2]
[419021847,1774769440537,-614.6778,0.00012343,2]
[419021848,1774769440548,-3656.0,0.00012343,5]
[419021849,1774769440557,-3657.0,0.00012343,5]
[419021850,1774769440566,-500.0,0.00012384,2]
[419021851,1774769440576,-2000.0,0.0001239,2]
[419021852,1774769440585,-2000.0,0.0001239,2]
[419021853,1774769440594,-2000.0,0.0001239,2]
[419021854,1774769440603,-498.60320132,0.00012413,2]
[419021855,1774769440613,-37910.89333687,0.00012447,2]
[419021856,1774769440623,-151.0,0.00012447,2]
[419021857,1774769440632,-2775.098569,0.00012476,2]
[419021858,1774769440642,-615.570655,0.000125,2]
[419021859,1774769440652,-190.764503,0.000125,2]
[419021860,1774769440661,-2904.642714,0.000125,2]
[419021861,1774769440670,-1000.0,0.00012515,2]
[419021862,1774769440680,-1000.0,0.00012515,2]
[419021863,1774769440689,-1000.0,0.00012515,2]
[419021864,1774769440699,-1000.0,0.00012515,2]
[419021865,1774769440709,-1000.0,0.00012515,2]
[419021866,1774769440719,-1148.47792248,0.00012515,2]
[419021867,1774769440728,-255.488011,0.00012515,2]
[419021868,1774769440738,-434.361465,0.00012515,2]
[419021869,1774769440748,-434.361465,0.00012515,2]
[419021870,1774769440758,-434.361465,0.00012515,2]
[419021871,1774769440768,-434.361465,0.00012515,2]
[419021872,1774769440778,-2000.0,0.00012515,2]
[419021873,1774769440788,-2000.0,0.00012515,2]
[419021874,1774769440798,-2000.0,0.00012515,2]
[419021875,1774769440808,-294.467556,0.00012517,2]
[419021876,1774769440818,-500.0,0.0001252,2]
[419021877,1774769440827,-250.0,0.00012521,3]
[419021878,1774769440837,-473.453545,0.00012536,2]
[419021879,1774769440847,-473.453545,0.00012536,2]
[419021880,1774769440856,-473.453545,0.00012536,2]
[419021881,1774769440866,-473.453545,0.00012536,2]
[419021882,1774769440876,-16942.93920207,0.00012537,2]
[419021883,1774769440885,-731.76,0.00012538,2]
[419021884,1774769440895,-790.63680729,0.00012567,2]
[419021885,1774769440904,-150.0,0.00012572,2]